[Event "4th CNE NED-ch Women Rapid"]
[Site "Amstelveen"]
[Date "2018.11.18"]
[Round "4"]
[White "Kazarian, Anna-Maja"]
[Black "Paulet, Iozefina"]
[Result "0-1"]
[ECO "A65"]
[WhiteElo "2194"]
[BlackElo "2281"]
[Annotator "NA"]
[PlyCount "68"]
[EventDate "2018.11.18"]
[EventType "tourn"]
[EventCountry "NED"]
[SourceTitle "playchess.com"]
[Source "ChessBase"]
[SourceQuality "1"]
[TimeControl "900+10"]

1. d4 {[%emt 0:00:00]} Nf6 {[%emt 0:00:00]} 2. c4 {[%emt 0:00:00]} c5 {[%emt 0:00:00]} 3. d5 {[%emt 0:00:00]} e6 {[%emt 0:00:00]} 4. Nc3 {[%emt 0:00:01]} exd5 {[%emt 0:00:00]} 5. cxd5 {[%emt 0:00:01]} d6 {[%emt 0:00:00]} 6. e4 {[%emt 0:00:48]} g6 {[%emt 0:00:00]} 7. Bf4 {[%emt 0:01:58]} a6 {[%emt 0:00:37]} 8. a4 {[%emt 0:00:08]} Bg7 {[%emt 0:00:02]} 9. Bc4 {[%emt 0:00:46]} O-O {[%emt 0:00:04]} 10. Nge2 {[%emt 0:00:18]} Re8 {[%emt 0:00:07]} 11. Qc2 {[%emt 0:00:29]} Nh5 {[%emt 0:00:08]} 12. Be3 {[%emt 0:00:15]} Nd7 {[%emt 0:00:08]} 13. f4 {[%emt 0:01:32]} f5 {[%emt 0:00:02]} 14. O-O {[%emt 0:00:19]} fxe4 {[%emt 0:00:06]} 15. Nxe4 {[%emt 0:00:12]} Ndf6 {[%emt 0:00:02]} 16. Nxf6+ {[%emt 0:00:46]} Nxf6 {[%emt 0:00:06]} 17. Ra3 {[%emt 0:00:28]} Bf5 {[%emt 0:00:04]} 18. Qd1 {[%emt 0:00:52]} b5 {[%emt 0:00:30]} 19. Bd3 {[%emt 0:03:21]} b4 {[%emt 0:00:14]} 20. Rb3 {[%emt 0:00:41]} Qe7 {[%emt 0:00:20]} 21. Bxf5 {[%emt 0:00:29]} gxf5 {[%emt 0:00:02]} 22. Rf3 {[%emt 0:01:35]} a5 {[%emt 0:00:08]} 23. Ng3 {[%emt 0:01:26]} Qd7 {[%emt 0:00:24]} 24. Bf2 {[%emt 0:00:42]} Ng4 {[%emt 0:00:02]} 25. Qc2 {[%emt 0:01:29]} Rf8 {[%emt 0:01:02]} 26. Nh5 {[%emt 0:00:07]} Nxf2 {[%emt 0:00:27]} 27. Kxf2 {[%emt 0:00:01]} Bd4+ {[%emt 0:00:13]} 28. Kf1 {[%emt 0:00:01]} Qxa4 {[%emt 0:00:05]} 29. Rg3+ {[%emt 0:00:09]} Kh8 {[%emt 0:00:02]} 30. Qc1 {[%emt 0:00:20]} c4 {[%emt 0:01:09]} 31. Rbf3 {[%emt 0:00:32]} Qb5 {[%emt 0:00:04]} 32. Qd1 {[%emt 0:00:12]} c3+ {[%emt 0:00:32]} 33. Rd3 {[%emt 0:00:02]} cxb2 {[%emt 0:00:06]} 34. Rg5 {[%emt 0:00:24]} Rac8 {[%emt 0:00:08]} 0-1

[Event "4th CNE NED-ch Women Rapid"]
[Site "Amstelveen"]
[Date "2018.11.18"]
[Round "4"]
[White "Van Foreest, Machteld"]
[Black "Ratsma, Rosa"]
[Result "0-1"]
[ECO "B96"]
[WhiteElo "2003"]
[BlackElo "2269"]
[Annotator "NA"]
[PlyCount "60"]
[EventDate "2018.11.18"]
[EventType "tourn"]
[EventCountry "NED"]
[SourceTitle "playchess.com"]
[Source "ChessBase"]
[SourceQuality "1"]
[TimeControl "900+10"]

1. e4 {[%emt 0:00:00]} c5 {[%emt 0:00:00]} 2. Nf3 {[%emt 0:00:00]} d6 {[%emt 0:00:00]} 3. d4 {[%emt 0:00:00]} cxd4 {[%emt 0:00:00]} 4. Nxd4 {[%emt 0:00:00]} Nf6 {[%emt 0:00:00]} 5. Nc3 {[%emt 0:00:00]} a6 {[%emt 0:00:00]} 6. Bg5 {[%emt 0:00:00]} e6 {[%emt 0:00:02]} 7. f4 {[%emt 0:00:03]} h6 {[%emt 0:00:06]} 8. Bh4 {[%emt 0:00:08]} Be7 {[%emt 0:00:04]} 9. Bg3 {[%emt 0:03:16]} Qa5 {[%emt 0:03:09]} 10. Qd2 {[%emt 0:01:29]} b5 {[%emt 0:00:23]} 11. Nb3 {[%emt 0:02:20]} Qc7 {[%emt 0:00:27]} 12. Bd3 {[%emt 0:00:36]} Bb7 {[%emt 0:00:27]} 13. a3 {[%emt 0:00:26]} h5 {[%emt 0:01:32]} 14. Bf2 {[%emt 0:02:01]} Nbd7 {[%emt 0:01:34]} 15. O-O-O {[%emt 0:00:31]} Rc8 {[%emt 0:01:32]} 16. Rhe1 {[%emt 0:00:25]} O-O {[%emt 0:00:33]} 17. h3 {[%emt 0:00:50]} Rfd8 {[%emt 0:00:51]} 18. g4 {[%emt 0:02:07]} Nc5 {[%emt 0:01:51]} 19. Nxc5 {[%emt 0:01:08]} dxc5 {[%emt 0:00:02]} 20. Qe3 {[%emt 0:01:29]} b4 {[%emt 0:00:20]} 21. axb4 {[%emt 0:00:51]} cxb4 {[%emt 0:00:03]} 22. Nb1 {[%emt 0:00:22]} hxg4 {[%emt 0:01:25]} 23. hxg4 {[%emt 0:00:10]} Nxg4 {[%emt 0:00:07]} 24. Qg3 {[%emt 0:00:22]} Rxd3 {[%emt 0:00:15]} 25. Qxd3 {[%emt 0:00:11]} Nxf2 {[%emt 0:00:05]} 26. Qe2 {[%emt 0:00:06]} Nxd1 {[%emt 0:00:29]} 27. Rxd1 {[%emt 0:00:01]} Qxf4+ {[%emt 0:00:08]} 28. Nd2 {[%emt 0:00:02]} b3 {[%emt 0:00:31]} 29. c3 {[%emt 0:00:05]} Bg5 {[%emt 0:00:20]} 30. Kb1 {[%emt 0:00:29]} Rd8 {[%emt 0:00:14]} 0-1

[Event "4th CNE NED-ch Women Rapid"]
[Site "Amstelveen"]
[Date "2018.11.18"]
[Round "5"]
[White "Haast, Anne"]
[Black "De Jong-Muhren, Bianca"]
[Result "0-1"]
[ECO "B48"]
[WhiteElo "2309"]
[BlackElo "2243"]
[Annotator "ChessBase"]
[PlyCount "142"]
[EventDate "2018.11.18"]
[EventType "tourn"]
[EventCountry "NED"]
[SourceTitle "playchess.com"]
[Source "ChessBase"]
[SourceQuality "1"]
[TimeControl "900+10"]

1. e4 {[%emt 0:00:00]} c5 {[%emt 0:00:00]} 2. Nf3 {[%emt 0:00:00]} e6 {[%emt 0:00:00]} 3. d4 {[%emt 0:00:00]} cxd4 {[%emt 0:00:00]} 4. Nxd4 {[%emt 0:00:00]} Nc6 {[%emt 0:00:00]} 5. Nc3 {[%emt 0:00:00]} Qc7 {[%emt 0:00:00]} 6. Be3 {[%emt 0:00:03]} a6 {[%emt 0:00:00]} 7. Qf3 {[%emt 0:00:09]} Nf6 {[%emt 0:00:34]} 8. Qg3 {[%emt 0:01:02]} Qxg3 {[%emt 0:00:39]} 9. hxg3 {[%emt 0:00:07]} Ng4 {[%emt 0:00:09]} 10. Nxc6 {[%emt 0:01:25]} Nxe3 {[%emt 0:00:21]} 11. Nd4 {[%emt 0:00:12]} Nxf1 {[%emt 0:01:20]} 12. Kxf1 {[%emt 0:00:05]} b5 {[%emt 0:01:02]} 13. Nb3 {[%emt 0:00:37]} Bb4 {[%emt 0:02:25]} 14. Ne2 {[%emt 0:00:02]} Bb7 {[%emt 0:00:47]} 15. f3 {[%emt 0:00:02]} a5 {[%emt 0:01:13]} 16. c3 {[%emt 0:02:09]} Be7 {[%emt 0:00:20]} 17. Nbd4 {[%emt 0:00:34]} Ba6 {[%emt 0:00:26]} 18. Rh5 {[%emt 0:01:52]} b4 {[%emt 0:01:31]} 19. Kf2 {[%emt 0:00:10]} Bd8 {[%emt 0:02:14]} 20. Rd1 {[%emt 0:04:01]} Bb6 {[%emt 0:00:14]} 21. Ke1 {[%emt 0:00:09]} O-O {[%emt 0:00:32]} 22. b3 {[%emt 0:01:15]} g6 {[%emt 0:01:33]} 23. Rh3 {[%emt 0:00:43]} bxc3 {[%emt 0:00:35]} 24. Nxc3 {[%emt 0:00:02]} Rac8 {[%emt 0:00:14]} 25. Na4 {[%emt 0:00:24]} Ba7 {[%emt 0:00:22]} 26. Ne2 {[%emt 0:01:05]} Rc2 {[%emt 0:00:29]} 27. Rd2 {[%emt 0:00:09]} Rfc8 {[%emt 0:00:04]} 28. Kd1 {[%emt 0:02:28]} Rxd2+ {[%emt 0:00:37]} 29. Kxd2 {[%emt 0:00:01]} Bxe2 {[%emt 0:00:04]} 30. Kxe2 {[%emt 0:00:01]} Rc2+ {[%emt 0:00:01]} 31. Kd3 {[%emt 0:00:27]} Rxa2 {[%emt 0:00:16]} 32. Rh2 {[%emt 0:00:13]} Bg1 {[%emt 0:00:20]} 33. Rh1 {[%emt 0:00:01]} Rxg2 {[%emt 0:00:02]} 34. g4 {[%emt 0:00:02]} Kg7 {[%emt 0:00:34]} 35. Nc3 {[%emt 0:00:04]} Bb6 {[%emt 0:00:35]} 36. Ne2 {[%emt 0:00:07]} Rf2 {[%emt 0:00:14]} 37. Rh3 {[%emt 0:00:07]} Rf1 {[%emt 0:00:12]} 38. f4 {[%emt 0:00:02]} d5 {[%emt 0:00:14]} 39. exd5 {[%emt 0:00:19]} exd5 {[%emt 0:00:02]} 40. Kd2 {[%emt 0:00:06]} Bc7 {[%emt 0:00:26]} 41. Ke3 {[%emt 0:00:16]} d4+ {[%emt 0:00:22]} 42. Kxd4 {[%emt 0:00:06]} Bxf4 {[%emt 0:00:04]} 43. Kc4 {[%emt 0:00:07]} Be5 {[%emt 0:00:12]} 44. Kb5 {[%emt 0:00:06]} Ra1 {[%emt 0:00:08]} 45. Re3 {[%emt 0:00:09]} f6 {[%emt 0:00:03]} 46. Ng3 {[%emt 0:00:44]} Bxg3 {[%emt 0:00:37]} 47. Rxg3 {[%emt 0:00:01]} Kh6 {[%emt 0:00:07]} 48. Rc3 {[%emt 0:00:30]} Kg5 {[%emt 0:00:01]} 49. Rc4 {[%emt 0:00:04]} h5 {[%emt 0:00:11]} 50. gxh5 {[%emt 0:00:01]} gxh5 {[%emt 0:00:01]} 51. Rc8 {[%emt 0:00:18]} h4 {[%emt 0:00:25]} 52. Rh8 {[%emt 0:00:06]} f5 {[%emt 0:00:05]} 53. Kc4 Rd1 {[%emt 0:00:12]} 54. b4 {[%emt 0:00:31]} axb4 {[%emt 0:00:03]} 55. Kxb4 {[%emt 0:00:01]} Rc1 {[%emt 0:00:02]} 56. Kb3 {[%emt 0:00:03]} Kg4 {[%emt 0:00:07]} 57. Kb2 {[%emt 0:00:04]} Rc7 {[%emt 0:00:01]} 58. Rg8+ {[%emt 0:00:10]} Kf3 {[%emt 0:00:04]} 59. Rh8 {[%emt 0:00:16]} Kg3 {[%emt 0:00:15]} 60. Rg8+ {[%emt 0:00:05]} Kf3 {[%emt 0:00:31]} 61. Rh8 {[%emt 0:00:04]} Rc4 {[%emt 0:00:05]} 62. Kb3 {[%emt 0:00:02]} Rg4 {[%emt 0:00:03]} 63. Kc2 {[%emt 0:00:15]} Kg2 {[%emt 0:00:02]} 64. Rd8 {[%emt 0:00:47]} f4 {[%emt 0:00:14]} 65. Rd2+ {[%emt 0:00:03]} Kg3 {[%emt 0:00:03]} 66. Kd3 {[%emt 0:00:35]} h3 {[%emt 0:00:09]} 67. Ke4 {[%emt 0:00:04]} f3+ {[%emt 0:00:23]} 68. Ke3 {[%emt 0:00:01]} h2 {[%emt 0:00:08]} 69. Rd1 {[%emt 0:00:06]} Kg2 {[%emt 0:00:05]} 70. Rd2+ {[%emt 0:00:08]} Kg3 {[%emt 0:00:04]} 71. Rd1 {[%emt 0:00:02]} Rh4 {[%emt 0:00:07] Kd4} 0-1

[Event "4th CNE NED-ch Women Rapid"]
[Site "Amstelveen"]
[Date "2018.11.18"]
[Round "5"]
[White "Paulet, Iozefina"]
[Black "Van Foreest, Machteld"]
[Result "1-0"]
[ECO "B40"]
[WhiteElo "2281"]
[BlackElo "2003"]
[Annotator "ChessBase"]
[PlyCount "59"]
[EventDate "2018.11.18"]
[EventType "tourn"]
[EventCountry "NED"]
[SourceTitle "playchess.com"]
[Source "ChessBase"]
[SourceQuality "1"]
[TimeControl "900+10"]

1. e4 {[%emt 0:00:00]} c5 {[%emt 0:00:00]} 2. Nf3 {[%emt 0:00:00]} e6 {[%emt 0:00:00]} 3. b3 {[%emt 0:00:00]} d5 {[%emt 0:00:04]} 4. exd5 {[%emt 0:00:00]} exd5 {[%emt 0:00:01]} 5. Bb5+ {[%emt 0:00:01]} Bd7 {[%emt 0:00:58]} 6. Bxd7+ {[%emt 0:00:07]} Qxd7 {[%emt 0:00:04]} 7. O-O {[%emt 0:00:03]} Nf6 {[%emt 0:00:26]} 8. d4 {[%emt 0:00:01]} cxd4 {[%emt 0:03:04]} 9. Re1+ {[%emt 0:00:07]} Be7 {[%emt 0:00:04]} 10. Ba3 {[%emt 0:00:25]} Nc6 {[%emt 0:02:09]} 11. Ne5 {[%emt 0:00:23]} Nxe5 {[%emt 0:00:54]} 12. Rxe5 {[%emt 0:00:03]} O-O {[%emt 0:00:39]} 13. Rxe7 {[%emt 0:00:07]} Qc6 {[%emt 0:00:10]} 14. Qxd4 {[%emt 0:01:01]} Rfe8 {[%emt 0:00:55]} 15. Rxe8+ {[%emt 0:00:05]} Rxe8 {[%emt 0:00:03]} 16. Nc3 {[%emt 0:00:04]} Qe6 {[%emt 0:00:21]} 17. h3 {[%emt 0:00:06]} Qf5 {[%emt 0:00:01]} 18. Bb2 {[%emt 0:00:29]} b6 {[%emt 0:00:25]} 19. Rd1 {[%emt 0:00:29]} Rd8 {[%emt 0:00:20]} 20. Qd3 {[%emt 0:00:02]} Qe5 {[%emt 0:00:37]} 21. Na4 {[%emt 0:00:37]} Qg5 {[%emt 0:00:17]} 22. Bxf6 {[%emt 0:00:08]} Qxf6 {[%emt 0:00:03]} 23. Nc3 {[%emt 0:00:03]} d4 {[%emt 0:00:02]} 24. Ne2 {[%emt 0:00:02]} Qd6 {[%emt 0:00:11]} 25. Nxd4 {[%emt 0:00:02]} Qa3 {[%emt 0:00:06]} 26. Re1 {[%emt 0:00:38]} g6 {[%emt 0:00:14]} 27. Qe3 {[%emt 0:01:03]} Qxa2 {[%emt 0:00:15]} 28. Nc6 {[%emt 0:00:06]} Ra8 {[%emt 0:00:08]} 29. Qe5 {[%emt 0:00:18]} Qxc2 {[%emt 0:00:18]} 30. Ne7+ {[%emt 0:00:02]} 1-0

[Event "4th CNE NED-ch Women Rapid"]
[Site "Amstelveen"]
[Date "2018.11.18"]
[Round "5"]
[White "Ratsma, Rosa"]
[Black "Lanchava, Tea"]
[Result "0-1"]
[ECO "B10"]
[WhiteElo "2269"]
[BlackElo "2314"]
[Annotator "ChessBase"]
[PlyCount "170"]
[EventDate "2018.11.18"]
[EventType "tourn"]
[EventCountry "NED"]
[SourceTitle "playchess.com"]
[Source "ChessBase"]
[SourceQuality "1"]
[TimeControl "900+10"]

1. e4 {[%emt 0:00:00]} c6 {[%emt 0:00:00]} 2. Nc3 {[%emt 0:00:00]} g6 {[%emt 0:00:00]} 3. d4 {[%emt 0:00:06]} Bg7 {[%emt 0:00:00]} 4. Bc4 {[%emt 0:00:05]} d6 {[%emt 0:00:00]} 5. a4 {[%emt 0:00:22]} Nf6 {[%emt 0:00:19]} 6. Nf3 {[%emt 0:00:22]} O-O {[%emt 0:00:10]} 7. O-O {[%emt 0:00:08]} d5 {[%emt 0:00:22]} 8. exd5 {[%emt 0:00:04]} cxd5 {[%emt 0:00:04]} 9. Bb3 {[%emt 0:00:14]} Nc6 {[%emt 0:00:22]} 10. Bg5 {[%emt 0:00:16]} Bg4 {[%emt 0:00:50]} 11. Bxf6 {[%emt 0:00:59]} Bxf6 {[%emt 0:00:13]} 12. Nxd5 {[%emt 0:00:28]} Bxd4 {[%emt 0:00:28]} 13. c3 {[%emt 0:01:24]} Bg7 {[%emt 0:00:04]} 14. h3 {[%emt 0:00:25]} Bd7 {[%emt 0:00:48]} 15. Re1 {[%emt 0:01:44]} e6 {[%emt 0:00:11]} 16. Ne3 {[%emt 0:00:08]} Na5 {[%emt 0:01:09]} 17. Bc2 {[%emt 0:00:11]} Qc7 {[%emt 0:00:09]} 18. Qe2 {[%emt 0:00:28]} Rad8 {[%emt 0:00:08]} 19. Red1 {[%emt 0:01:06]} Qb6 {[%emt 0:00:04]} 20. b4 {[%emt 0:00:31]} Nc6 {[%emt 0:00:04]} 21. Nc4 {[%emt 0:00:18]} Qc7 {[%emt 0:00:02]} 22. b5 {[%emt 0:00:40]} Na5 {[%emt 0:01:53]} 23. Nce5 {[%emt 0:00:37]} Qxc3 {[%emt 0:02:19]} 24. Rac1 {[%emt 0:00:36]} Bh6 {[%emt 0:04:26]} 25. Rd3 {[%emt 0:03:38]} Qc7 {[%emt 0:00:50]} 26. Rcd1 {[%emt 0:00:08]} Rc8 {[%emt 0:00:16]} 27. Nxd7 {[%emt 0:00:20]} Qxc2 {[%emt 0:00:26]} 28. Qxc2 {[%emt 0:00:22]} Rxc2 {[%emt 0:00:02]} 29. Nxf8 {[%emt 0:00:04]} Kxf8 {[%emt 0:00:26]} 30. Rd7 {[%emt 0:00:38]} Rc5 {[%emt 0:00:34]} 31. Rd8+ {[%emt 0:01:10]} Kg7 {[%emt 0:00:20]} 32. Ra8 {[%emt 0:00:09]} Rc4 {[%emt 0:00:41]} 33. Rxa7 {[%emt 0:00:20]} Rxa4 {[%emt 0:00:08]} 34. Nd4 {[%emt 0:00:39]} Ra3 {[%emt 0:01:05]} 35. b6 {[%emt 0:00:22]} Bf4 {[%emt 0:00:20]} 36. Nb5 {[%emt 0:00:16]} Ra2 {[%emt 0:00:08]} 37. g3 {[%emt 0:00:06]} Bb8 {[%emt 0:00:25]} 38. Ra8 {[%emt 0:00:03]} Be5 {[%emt 0:00:04]} 39. Kg2 {[%emt 0:00:31]} g5 {[%emt 0:00:27]} 40. Re1 {[%emt 0:00:24]} Kf6 {[%emt 0:00:15]} 41. Kf3 {[%emt 0:00:32]} h5 {[%emt 0:00:02]} 42. g4 {[%emt 0:00:20]} hxg4+ {[%emt 0:00:01]} 43. hxg4 {[%emt 0:00:02]} Ra4 {[%emt 0:00:00]} 44. Re4 {[%emt 0:00:19]} Ra1 {[%emt 0:00:04]} 45. Kg2 {[%emt 0:00:16]} Ra2 {[%emt 0:00:09]} 46. Nd4 {[%emt 0:00:07]} Ra4 {[%emt 0:00:13]} 47. Rxa5 {[%emt 0:00:38]} Rxa5 {[%emt 0:00:01]} 48. Nf3 {[%emt 0:00:03]} Bf4 {[%emt 0:00:09]} 49. Rb4 {[%emt 0:00:06]} Bd6 {[%emt 0:00:06]} 50. Rb3 {[%emt 0:00:08]} Bc5 {[%emt 0:00:02]} 51. Nd2 {[%emt 0:00:07]} Ke7 {[%emt 0:00:03]} 52. Ne4 {[%emt 0:00:07]} Bd4 {[%emt 0:00:05]} 53. Rb4 {[%emt 0:00:18]} Bc5 {[%emt 0:00:29]} 54. Rb2 {[%emt 0:00:18]} f6 {[%emt 0:00:07]} 55. Rb3 {[%emt 0:00:12]} Bd4 {[%emt 0:00:03]} 56. Rb4 {[%emt 0:00:04]} Rd5 {[%emt 0:00:10]} 57. f3 {[%emt 0:00:08]} Be3 {[%emt 0:00:05]} 58. Rb3 {[%emt 0:00:10]} Bd4 {[%emt 0:00:10]} 59. Rb4 {[%emt 0:00:08]} Kd7 {[%emt 0:00:07]} 60. Rc4 {[%emt 0:00:06]} Be5 {[%emt 0:00:11]} 61. Nc5+ {[%emt 0:00:24]} Kc6 {[%emt 0:00:04]} 62. Nxe6+ {[%emt 0:00:04]} Kxb6 {[%emt 0:00:02]} 63. Ng7 {[%emt 0:00:15]} Rd2+ {[%emt 0:00:02]} 64. Kf1 {[%emt 0:00:04]} Kb5 {[%emt 0:00:04]} 65. Re4 {[%emt 0:00:11]} Kc5 {[%emt 0:00:09]} 66. Ne6+ {[%emt 0:00:08]} Kd5 {[%emt 0:00:06]} 67. Ng7 {[%emt 0:00:07]} b5 {[%emt 0:00:03]} 68. Nf5 {[%emt 0:00:02]} b4 {[%emt 0:00:42]} 69. Rxb4 {[%emt 0:00:13]} Bc3 {[%emt 0:00:15]} 70. Ne3+ {[%emt 0:00:11]} Ke6 {[%emt 0:00:53]} 71. Rb6+ {[%emt 0:00:15]} Kf7 {[%emt 0:00:03]} 72. Rb7+ {[%emt 0:00:06]} Ke8 {[%emt 0:00:13]} 73. Rb8+ {[%emt 0:00:15]} Kd7 {[%emt 0:00:06]} 74. Rb7+ {[%emt 0:00:21]} Kc6 {[%emt 0:00:04]} 75. Re7 {[%emt 0:00:11]} Bd4 {[%emt 0:00:22]} 76. Nf5 {[%emt 0:00:03]} Be5 {[%emt 0:00:06]} 77. Ke1 {[%emt 0:00:13]} Rh2 {[%emt 0:00:03]} 78. Ra7 {[%emt 0:00:14]} Kc5 {[%emt 0:00:04]} 79. Kf1 {[%emt 0:00:06]} Kc4 {[%emt 0:00:07]} 80. Rd7 {[%emt 0:00:02]} Ra2 {[%emt 0:00:10]} 81. Rd1 {[%emt 0:00:17]} Kc3 {[%emt 0:00:10]} 82. Rd7 {[%emt 0:00:13]} Rh2 {[%emt 0:00:06]} 83. Ne3 {[%emt 0:00:07]} Bd4 {[%emt 0:00:10]} 84. Ng2 {[%emt 0:00:13]} Kd3 {[%emt 0:00:06]} 85. f4 {[%emt 0:00:12]} Rh1# {[%emt 0:00:05]} 0-1

[Event "4th CNE NED-ch Women Rapid"]
[Site "Amstelveen"]
[Date "2018.11.18"]
[Round "5"]
[White "Keetman, Maaike"]
[Black "Kazarian, Anna-Maja"]
[Result "1/2-1/2"]
[ECO "B18"]
[WhiteElo "2176"]
[BlackElo "2194"]
[Annotator "NA"]
[PlyCount "96"]
[EventDate "2018.11.18"]
[EventType "tourn"]
[EventCountry "NED"]
[SourceTitle "playchess.com"]
[Source "ChessBase"]
[SourceQuality "1"]
[TimeControl "900+10"]

1. e4 {[%emt 0:00:00]} c6 {[%emt 0:00:00]} 2. d4 {[%emt 0:00:00]} d5 {[%emt 0:00:00]} 3. Nd2 {[%emt 0:00:00]} dxe4 {[%emt 0:00:00]} 4. Nxe4 {[%emt 0:00:00]} Bf5 {[%emt 0:00:00]} 5. Ng3 {[%emt 0:00:00]} Bg6 {[%emt 0:00:00]} 6. Nh3 {[%emt 0:00:00]} Nf6 {[%emt 0:00:05]} 7. Nf4 {[%emt 0:00:05]} e6 $14 {[%emt 0:00:29]} (7... Qc7 $11) 8. h4 {[%emt 0:00:07]} Bd6 {[%emt 0:01:34]} 9. h5 {[%emt 0:00:06]} Bf5 {[%emt 0:00:14]} 10. Nxf5 {[%emt 0:00:08]} exf5 {[%emt 0:00:02]} 11. Bd3 {[%emt 0:01:20]} O-O {[%emt 0:02:08]} 12. O-O {[%emt 0:01:12]} Ne4 {[%emt 0:05:13]} 13. c3 {[%emt 0:01:56]} Nd7 {[%emt 0:00:41]} 14. Qf3 {[%emt 0:01:24]} Ndf6 {[%emt 0:00:12]} 15. Qh3 {[%emt 0:00:33]} g6 {[%emt 0:01:32]} 16. hxg6 {[%emt 0:00:27]} hxg6 {[%emt 0:00:01]} 17. f3 {[%emt 0:01:42]} Ng5 {[%emt 0:00:36]} 18. Qh6 {[%emt 0:00:03]} Ngh7 {[%emt 0:02:17]} 19. Bc4 {[%emt 0:01:45]} Kh8 {[%emt 0:00:56]} 20. Kf2 {[%emt 0:01:10]} Ng8 {[%emt 0:00:31]} 21. Qh3 {[%emt 0:00:39]} Qf6 {[%emt 0:00:01]} 22. Rh1 {[%emt 0:00:09]} Qg7 {[%emt 0:00:01]} 23. Be3 {[%emt 0:01:00]} Rae8 {[%emt 0:00:11]} 24. Rae1 {[%emt 0:00:04]} Re7 {[%emt 0:00:10]} 25. d5 {[%emt 0:00:51]} Rfe8 {[%emt 0:00:04]} 26. Bd4 {[%emt 0:00:24]} Be5 {[%emt 0:00:33]} 27. Bxe5 {[%emt 0:00:37]} Rxe5 {[%emt 0:00:07]} 28. Rxe5 {[%emt 0:00:14]} Rxe5 {[%emt 0:00:02]} 29. dxc6 {[%emt 0:00:00]} bxc6 {[%emt 0:00:02]} 30. Bxf7 {[%emt 0:00:16]} Qxf7 {[%emt 0:00:34]} 31. Qxh7+ {[%emt 0:00:02]} Qxh7 {[%emt 0:00:02]} 32. Nxg6+ {[%emt 0:00:01]} Kg7 {[%emt 0:00:01]} 33. Rxh7+ {[%emt 0:00:02]} Kxg6 {[%emt 0:00:03]} 34. Rxa7 {[%emt 0:00:03]} Ne7 {[%emt 0:00:53]} 35. a4 {[%emt 0:00:31]} f4 {[%emt 0:00:24]} 36. Rc7 {[%emt 0:00:28]} Kg5 {[%emt 0:00:59]} 37. g3 {[%emt 0:00:23]} fxg3+ {[%emt 0:00:02]} 38. Kxg3 {[%emt 0:00:01]} Re2 {[%emt 0:00:16]} 39. f4+ {[%emt 0:00:31]} Kf5 {[%emt 0:00:08]} 40. a5 {[%emt 0:00:09]} Nd5 {[%emt 0:00:24]} 41. Rxc6 {[%emt 0:00:11]} Rxb2 {[%emt 0:00:04]} 42. Rc5 {[%emt 0:00:37]} Ke4 {[%emt 0:00:01]} 43. Rc4+ {[%emt 0:00:08]} Kf5 {[%emt 0:00:06]} 44. Ra4 {[%emt 0:00:30]} Nxc3 {[%emt 0:00:09]} 45. Ra3 {[%emt 0:00:01]} Ne4+ {[%emt 0:00:08]} 46. Kf3 {[%emt 0:00:19]} Nd2+ {[%emt 0:00:01]} 47. Kg3 {[%emt 0:00:01]} Ne4+ {[%emt 0:00:07]} 48. Kf3 {[%emt 0:00:01]} Nd2+ {[%emt 0:00:01] Ke4+ Ke5+} 1/2-1/2

[Event "4th CNE NED-ch Women Rapid"]
[Site "Amstelveen"]
[Date "2018.11.18"]
[Round "6"]
[White "Lanchava, Tea"]
[Black "Paulet, Iozefina"]
[Result "1/2-1/2"]
[ECO "A26"]
[WhiteElo "2314"]
[BlackElo "2281"]
[Annotator "NA"]
[PlyCount "116"]
[EventDate "2018.11.18"]
[EventType "tourn"]
[EventCountry "NED"]
[SourceTitle "playchess.com"]
[Source "ChessBase"]
[SourceQuality "1"]
[TimeControl "900+10"]

1. c4 {[%emt 0:00:00]} e5 {[%emt 0:00:00]} 2. g3 {[%emt 0:00:00]} Nc6 {[%emt 0:00:00]} 3. Bg2 {[%emt 0:00:00]} g6 {[%emt 0:00:00]} 4. Nc3 {[%emt 0:00:03]} Bg7 {[%emt 0:00:00]} 5. d3 {[%emt 0:00:03]} d6 {[%emt 0:00:01]} 6. e4 {[%emt 0:00:03]} Be6 {[%emt 0:00:01]} 7. Nge2 {[%emt 0:00:03]} h5 {[%emt 0:00:02] A26: English Opening vs King's Indian with ...Nc6 and d3} (7... Qd7 8. Nd5 Nd8 9. d4 c6 10. Ne3 exd4 11. Nxd4 Bh3 12. Ndf5 Bxf5 13. exf5 Ne7 14. Bh3 Nxf5 15. O-O Ne6 16. Nxf5 gxf5 17. Bxf5 {1-0 (26) Grischuk,A (2771)-Svidler,P (2722) Moscow 2010}) 8. h3 {[%emt 0:00:22]} Qd7 {[%emt 0:00:01]} 9. Be3 {[%emt 0:00:16]} Nd8 $146 {[%emt 0:01:37]} ({Predecessor:} 9... Nd4 10. Nd5 Nxe2 11. Qxe2 c6 12. Nc3 Ne7 13. Rd1 h4 14. g4 f5 {0-1 (47) Aponte Castillo,J (2178)-Quesada Perez,Y (2558) Havana 2018}) 10. b4 {[%emt 0:00:58]} Ne7 {[%emt 0:00:04]} 11. Rb1 O-O {[%emt 0:00:04]} 12. Qd2 {[%emt 0:00:31]} f5 {[%emt 0:00:08]} 13. f3 {[%emt 0:00:46]} Nf7 {[%emt 0:00:21]} 14. Nd5 {[%emt 0:00:34]} c6 {[%emt 0:00:10]} 15. Nxe7+ {[%emt 0:00:10]} Qxe7 {[%emt 0:00:01]} 16. exf5 {[%emt 0:00:05]} gxf5 {[%emt 0:00:14]} 17. O-O {[%emt 0:00:10]} Qf6 {[%emt 0:00:59]} 18. f4 {[%emt 0:00:05]} e4 {[%emt 0:00:20]} 19. dxe4 {[%emt 0:00:12]} Bxc4 {[%emt 0:00:20]} 20. Bd4 {[%emt 0:00:16]} Qg6 {[%emt 0:00:04]} (20... Qh6 $1 $11 {remains equal.}) 21. Bxg7 {[%emt 0:00:07]} ({Only move:} 21. exf5 $16 Qxf5 22. Bxg7 Bxe2 23. Qxe2 Kxg7 24. b5) 21... Qxg7 {[%emt 0:00:01]} 22. Kh2 {[%emt 0:01:27]} fxe4 {[%emt 0:00:03]} 23. Bxe4 {[%emt 0:00:06]} d5 {[%emt 0:00:02]} 24. Bf3 {[%emt 0:00:09]} Nd6 {[%emt 0:00:34]} 25. Bxh5 {[%emt 0:01:00] [#]} (25. Rg1 $11) 25... Ne4 $1 {[%emt 0:00:02]} 26. Qb2 {[%emt 0:00:38]} Bxe2 {[%emt 0:00:43]} 27. Qxg7+ {[%emt 0:00:04]} Kxg7 {[%emt 0:00:02]} 28. Bxe2 {[%emt 0:00:02]} Nd2 {[%emt 0:00:01]} 29. Rb2 {[%emt 0:00:26]} Nxf1+ {[%emt 0:00:02]} 30. Bxf1 {[%emt 0:00:01]} Rae8 {[%emt 0:00:05]} 31. Rd2 {[%emt 0:00:32]} Re1 {[%emt 0:00:18]} 32. Bd3 {[%emt 0:00:58]} Rfe8 {[%emt 0:00:25]} 33. g4 {[%emt 0:00:15]} (33. Kg2 $142) 33... Rc1 {[%emt 0:00:23]} (33... R1e3 $19 34. h4 Rf3) 34. g5 {[%emt 0:00:14] [#]} Rc3 $1 {[%emt 0:00:05]} 35. f5 {[%emt 0:00:10]} Re3 {[%emt 0:00:14]} ({Better is} 35... d4 36. f6+ Kf7) 36. f6+ {[%emt 0:00:01]} Kf7 {[%emt 0:00:05]} 37. Bf5 {[%emt 0:00:04]} Rg3 {[%emt 0:01:23]} 38. Bg4 {[%emt 0:01:08] [#]} Rxg4 $14 {[%emt 0:02:34]} 39. hxg4 {[%emt 0:00:02]} Re3 {[%emt 0:00:03]} 40. Rf2 {[%emt 0:00:46]} Re8 {[%emt 0:00:01]} 41. Kg3 {[%emt 0:00:23]} Kg6 {[%emt 0:00:15]} 42. Kf4 {[%emt 0:05:04]} Re4+ {[%emt 0:00:02]} 43. Kg3 {[%emt 0:00:01]} Re3+ {[%emt 0:00:02]} 44. Kg2 {[%emt 0:00:49]} Re8 {[%emt 0:00:05]} 45. Rf5 {[%emt 0:01:10]} d4 {[%emt 0:02:46]} 46. Kf3 {[%emt 0:00:05]} d3 {[%emt 0:00:10]} 47. f7 {[%emt 0:00:03]} Rf8 {[%emt 0:00:04]} 48. Ke3 {[%emt 0:00:11]} Rxf7 {[%emt 0:00:02]} 49. Rxf7 {[%emt 0:00:09]} Kxf7 {[%emt 0:00:01]} 50. Kxd3 {[%emt 0:00:02]} Kg6 {[%emt 0:00:00]} 51. Kd4 {[%emt 0:00:14]} Kxg5 {[%emt 0:00:02]} 52. Kc5 {[%emt 0:00:01]} Kxg4 {[%emt 0:00:01]} 53. Kd6 {[%emt 0:00:07]} Kf4 {[%emt 0:00:01]} 54. Kc7 {[%emt 0:00:01]} Ke4 {[%emt 0:00:53]} 55. Kxb7 {[%emt 0:00:03]} Kd5 {[%emt 0:00:00]} 56. Kxa7 {[%emt 0:00:15]} Kc4 {[%emt 0:00:01]} 57. a3 {[%emt 0:00:03]} Kb3 {[%emt 0:00:05]} 58. Kb6 {[%emt 0:00:32] Kxb4 axb4} Kxa3 1/2-1/2